[Event "Wuerttemberg Rapid Teams 2024"]
[Site "B?blingen, Germany"]
[Date "2024.04.13"]
[Round "5.2"]
[White "Deuer, Marius"]
[Black "Namyslo, Holger"]
[Result "1/2-1/2"]
[ECO "B14"]
[WhiteElo "2439"]
[BlackElo "2125"]
[Annotator "RC"]
[PlyCount "44"]
[EventDate "2024.04.13"]
[EventType "team-tourn"]
[SourceTitle "playchess.com"]
[Source "ChessBase"]
[SourceQuality "1"]
[TimeControl "900+5"]

1. d4 {[%emt 0:00:01]} d5 {[%emt 0:04:39]} 2. c4 {[%emt 0:00:03]} e6 {[%emt 0:00:01]} 3. Nc3 {[%emt 0:00:01]} c5 {[%emt 0:00:01]} 4. e3 {[%emt 0:00:16]} Nf6 {[%emt 0:00:02]} 5. Nf3 {[%emt 0:00:02]} Nc6 {[%emt 0:00:00]} 6. a3 {[%emt 0:00:01]} cxd4 {[%emt 0:00:05]} 7. exd4 {[%emt 0:00:17]} Be7 {[%emt 0:00:27]} 8. c5 {[%emt 0:00:24]} O-O {[%emt 0:00:16]} 9. Bb5 {[%emt 0:05:23]} Ne4 {[%emt 0:01:53]} 10. Qc2 {[%emt 0:00:00]} f5 {[%emt 0:00:38]} 11. Bxc6 {[%emt 0:02:23]} bxc6 {[%emt 0:00:04]} 12. Ne5 {[%emt 0:00:01]} Qe8 {[%emt 0:00:53]} 13. f3 {[%emt 0:01:38]} Nxc3 {[%emt 0:00:05]} 14. Qxc3 {[%emt 0:00:01]} Bf6 {[%emt 0:00:21]} 15. Nd3 {[%emt 0:00:05]} a5 {[%emt 0:00:30]} 16. O-O {[%emt 0:00:49]} Ba6 {[%emt 0:01:30]} 17. Re1 {[%emt 0:00:03]} Bxd3 {[%emt 0:00:09]} 18. Qxd3 {[%emt 0:00:01]} Qd7 {[%emt 0:00:02]} 19. Bf4 {[%emt 0:00:54]} Rfe8 {[%emt 0:00:36]} 20. Re2 {[%emt 0:00:49]} Qb7 {[%emt 0:00:46]} 21. Rae1 {[%emt 0:01:21]} Kf7 {[%emt 0:00:13]} 22. b3 {[%emt 0:01:22]} Qb5 {[%emt 0:00:17]} 1/2-1/2

[Event "Wuerttemberg Rapid Teams 2024"]
[Site "B?blingen, Germany"]
[Date "2024.04.13"]
[Round "5.3"]
[White "Kocharin, Timur"]
[Black "Schulze, Andreas"]
[Result "0-1"]
[ECO "D02"]
[WhiteElo "2250"]
[BlackElo "2080"]
[Annotator "RC"]
[PlyCount "126"]
[EventDate "2024.04.13"]
[EventType "team-tourn"]
[SourceTitle "playchess.com"]
[Source "ChessBase"]
[SourceQuality "1"]
[TimeControl "900+5"]

1. d4 {[%emt 0:00:03]} Nf6 {[%emt 0:00:11]} 2. Bf4 {[%emt 0:00:02]} d5 {[%emt 0:00:03]} 3. e3 {[%emt 0:00:05]} c5 {[%emt 0:00:02]} 4. c3 {[%emt 0:00:33]} Nc6 {[%emt 0:00:03]} 5. Nf3 {[%emt 0:00:12]} e6 {[%emt 0:00:19]} 6. Bd3 {[%emt 0:00:09]} Be7 {[%emt 0:00:38]} 7. Nbd2 {[%emt 0:00:17]} Nh5 {[%emt 0:00:03]} 8. Bg3 {[%emt 0:00:03]} Nxg3 {[%emt 0:00:10]} 9. hxg3 {[%emt 0:00:02]} h6 {[%emt 0:00:02]} 10. Qe2 {[%emt 0:00:28]} Qc7 {[%emt 0:00:04]} 11. dxc5 {[%emt 0:00:25]} Bxc5 {[%emt 0:00:05]} 12. e4 {[%emt 0:00:04]} dxe4 {[%emt 0:00:07]} 13. Nxe4 {[%emt 0:00:02]} Be7 {[%emt 0:00:04]} 14. O-O-O {[%emt 0:00:46]} Bd7 {[%emt 0:00:03]} 15. Kb1 {[%emt 0:00:04]} O-O-O {[%emt 0:00:05]} 16. g4 {[%emt 0:01:02]} g6 {[%emt 0:01:36]} 17. Qe3 {[%emt 0:00:43]} f5 {[%emt 0:00:11]} 18. gxf5 {[%emt 0:00:35]} exf5 {[%emt 0:00:04]} 19. Ned2 {[%emt 0:00:25]} g5 {[%emt 0:00:51]} 20. Nc4 {[%emt 0:00:23]} g4 {[%emt 0:00:38]} 21. Nd4 {[%emt 0:00:53]} Bg5 {[%emt 0:00:28]} 22. Qe2 {[%emt 0:00:12]} Nxd4 {[%emt 0:00:54]} 23. cxd4 {[%emt 0:00:02]} Kb8 {[%emt 0:00:24]} 24. Ne5 {[%emt 0:00:22]} Rhe8 {[%emt 0:00:00]} 25. Qc2 {[%emt 0:00:07]} Qxc2+ {[%emt 0:00:02]} 26. Bxc2 {[%emt 0:00:01]} Be6 {[%emt 0:00:03]} 27. Rhe1 {[%emt 0:00:18]} Bc8 {[%emt 0:01:56]} 28. Ba4 {[%emt 0:00:47]} Re7 {[%emt 0:00:26]} 29. Bb3 {[%emt 0:00:17]} Bf6 {[%emt 0:00:18]} 30. f4 {[%emt 0:01:39]} gxf3 {[%emt 0:00:17]} 31. gxf3 {[%emt 0:00:01]} Bxe5 {[%emt 0:00:36]} 32. dxe5 {[%emt 0:00:01]} Rxd1+ {[%emt 0:00:03]} 33. Bxd1 {[%emt 0:00:02]} f4 {[%emt 0:00:10]} 34. Bc2 {[%emt 0:00:02]} h5 {[%emt 0:00:20]} 35. Re4 {[%emt 0:00:48]} h4 {[%emt 0:00:32]} 36. Rxf4 {[%emt 0:00:22]} h3 {[%emt 0:00:01]} 37. Rh4 {[%emt 0:00:34]} Rxe5 {[%emt 0:00:02]} 38. Be4 {[%emt 0:00:01]} Rg5 {[%emt 0:01:04]} 39. Rh8 {[%emt 0:01:00]} Kc7 {[%emt 0:00:18]} 40. Kc2 {[%emt 0:00:16]} Rg2+ {[%emt 0:00:07]} 41. Kc3 {[%emt 0:00:01]} h2 {[%emt 0:00:08]} 42. a3 {[%emt 0:00:50]} b6 {[%emt 0:00:07]} 43. b3 {[%emt 0:00:08]} Be6 {[%emt 0:00:20]} 44. Rh6 {[%emt 0:00:10]} Kd7 {[%emt 0:00:09]} 45. Rh7+ {[%emt 0:00:33]} Kd6 {[%emt 0:00:03]} 46. Rh5 {[%emt 0:00:02]} a5 {[%emt 0:00:32]} 47. a4 {[%emt 0:00:37]} Rf2 {[%emt 0:00:11]} 48. Bb7 {[%emt 0:00:17]} Bf7 {[%emt 0:00:44]} 49. Rh4 {[%emt 0:00:32]} Bg6 {[%emt 0:00:29]} 50. Rh6 {[%emt 0:00:15]} Ke7 {[%emt 0:00:08]} 51. f4 {[%emt 0:00:33]} Kf7 {[%emt 0:00:13]} 52. f5 {[%emt 0:00:15]} Bxf5 {[%emt 0:00:03]} 53. Rxb6 {[%emt 0:00:03]} Rc2+ {[%emt 0:01:13]} 54. Kd4 {[%emt 0:00:02]} Be6 {[%emt 0:00:03]} 55. Be4 {[%emt 0:00:25]} Rb2 {[%emt 0:00:21]} 56. b4 {[%emt 0:00:18]} axb4 {[%emt 0:00:23]} 57. a5 {[%emt 0:00:00]} b3 {[%emt 0:00:01]} 58. a6 {[%emt 0:00:09]} Ra2 {[%emt 0:00:02]} 59. Rb7+ {[%emt 0:00:02]} Kf6 {[%emt 0:00:02]} 60. a7 {[%emt 0:00:01]} Ra4+ {[%emt 0:00:06]} 61. Kd3 {[%emt 0:00:09]} Bf5 {[%emt 0:00:05]} 62. Rb6+ {[%emt 0:00:15]} Ke7 {[%emt 0:00:21]} 63. Rb7+ {[%emt 0:00:13]} Kd6 {[%emt 0:00:21]} 0-1

[Event "Wuerttemberg Rapid Teams 2024"]
[Site "B?blingen, Germany"]
[Date "2024.04.13"]
[Round "5.4"]
[White "Junesch, Gerhard"]
[Black "Birkenmaier, Rainer"]
[Result "1-0"]
[ECO "E90"]
[WhiteElo "2267"]
[BlackElo "2111"]
[Annotator "RC"]
[PlyCount "158"]
[EventDate "2024.04.13"]
[EventType "team-tourn"]
[SourceTitle "playchess.com"]
[Source "ChessBase"]
[SourceQuality "1"]
[TimeControl "900+5"]

1. d4 {[%emt 0:00:01]} g6 {[%emt 0:00:20]} 2. c4 {[%emt 0:00:03]} Bg7 {[%emt 0:00:01]} 3. e4 {[%emt 0:00:01]} c5 {[%emt 0:00:07]} 4. d5 {[%emt 0:00:19]} d6 {[%emt 0:00:04]} 5. Bd3 {[%emt 0:00:09]} Nf6 {[%emt 0:00:06]} 6. Nc3 {[%emt 0:00:05]} O-O {[%emt 0:00:10]} 7. h3 {[%emt 0:00:10]} Nbd7 {[%emt 0:00:16]} 8. Nf3 {[%emt 0:00:04]} a6 {[%emt 0:00:13]} 9. O-O {[%emt 0:00:09]} Ne8 {[%emt 0:00:09]} 10. Re1 {[%emt 0:00:40]} Ne5 {[%emt 0:00:06]} 11. Nxe5 {[%emt 0:00:12]} Bxe5 {[%emt 0:00:02]} 12. Bh6 {[%emt 0:00:29]} Ng7 {[%emt 0:01:12]} 13. Qd2 {[%emt 0:00:39]} Bd7 {[%emt 0:00:14]} 14. f4 {[%emt 0:00:31]} Bd4+ {[%emt 0:00:05]} 15. Kh2 {[%emt 0:00:40]} e5 {[%emt 0:01:00]} 16. f5 {[%emt 0:00:44]} f6 {[%emt 0:00:44]} 17. g4 {[%emt 0:00:41]} Rf7 {[%emt 0:00:23]} 18. Ne2 {[%emt 0:00:14]} b5 {[%emt 0:00:50]} 19. Rac1 {[%emt 0:00:58]} b4 {[%emt 0:01:11]} 20. Rcd1 {[%emt 0:00:21]} a5 {[%emt 0:00:20]} 21. Rf1 {[%emt 0:00:09]} Qe7 {[%emt 0:00:15]} 22. Rf3 {[%emt 0:00:04]} gxf5 {[%emt 0:00:24]} 23. gxf5 {[%emt 0:00:29]} Kh8 {[%emt 0:00:15]} 24. Ng3 {[%emt 0:00:14]} Rg8 {[%emt 0:00:03]} 25. Re1 {[%emt 0:00:23]} Qe8 {[%emt 0:00:22]} 26. Rff1 {[%emt 0:00:48]} Re7 {[%emt 0:00:39]} 27. Be2 {[%emt 0:00:33]} Qf7 {[%emt 0:00:07]} 28. Bg4 {[%emt 0:00:17]} Be8 {[%emt 0:00:08]} 29. Qe2 {[%emt 0:00:13]} Ra7 {[%emt 0:00:11]} 30. Rd1 {[%emt 0:00:13]} Qd7 {[%emt 0:00:35]} 31. Qc2 {[%emt 0:00:25]} a4 {[%emt 0:00:07]} 32. Qe2 {[%emt 0:00:06]} a3 {[%emt 0:00:09]} 33. b3 {[%emt 0:00:01]} Bf7 {[%emt 0:00:06]} 34. Qf3 {[%emt 0:00:25]} Qe8 {[%emt 0:00:29]} 35. Rd2 {[%emt 0:00:03]} Rb7 {[%emt 0:00:12]} 36. Rg2 {[%emt 0:00:01]} Qe7 {[%emt 0:00:24]} 37. Rd1 {[%emt 0:00:09]} Rbb8 {[%emt 0:00:01]} 38. Rd3 {[%emt 0:00:03]} Ra8 {[%emt 0:00:13]} 39. Qd1 {[%emt 0:00:02]} Rac8 {[%emt 0:00:11]} 40. Rdd2 {[%emt 0:00:15]} Rb8 {[%emt 0:00:06]} 41. Rc2 {[%emt 0:00:02]} Rbc8 {[%emt 0:00:02]} 42. Qf3 {[%emt 0:02:16]} Rb8 {[%emt 0:00:08]} 43. Rcd2 {[%emt 0:01:18]} Rbc8 {[%emt 0:00:11]} 44. Rd3 {[%emt 0:00:03]} Rc7 {[%emt 0:00:47]} 45. Qd1 {[%emt 0:00:02]} Be8 {[%emt 0:00:06]} 46. Qe2 {[%emt 0:00:18]} Bf7 {[%emt 0:00:41]} 47. Bf3 {[%emt 0:00:04]} Qe8 {[%emt 0:00:53]} 48. Rd1 {[%emt 0:00:02]} Rb7 {[%emt 0:00:17]} 49. Rc1 {[%emt 0:00:02]} Rc7 {[%emt 0:00:00]} 50. Rc2 {[%emt 0:00:01]} Rb7 {[%emt 0:00:02]} 51. Bc1 {[%emt 0:00:02]} Qf8 {[%emt 0:00:14]} 52. Bh6 {[%emt 0:00:02]} Qe8 {[%emt 0:00:01]} 53. Qd1 {[%emt 0:00:01]} Ra7 {[%emt 0:00:01]} 54. Kh1 {[%emt 0:00:02]} Rb7 {[%emt 0:00:03]} 55. Kh2 {[%emt 0:00:06]} Ra7 {[%emt 0:00:01]} 56. Nf1 {[%emt 0:00:14]} Re7 {[%emt 0:01:49]} 57. Rg3 {[%emt 0:00:02]} Qd7 {[%emt 0:00:22]} 58. Rcg2 {[%emt 0:00:05]} Ne8 {[%emt 0:00:03]} 59. Rxg8+ {[%emt 0:00:18]} Bxg8 {[%emt 0:00:01]} 60. Bh5 {[%emt 0:00:32]} Ng7 {[%emt 0:00:08]} 61. Qg4 {[%emt 0:00:12]} Qc7 {[%emt 0:00:24]} 62. Be8 {[%emt 0:01:06]} Qb7 {[%emt 0:00:21]} 63. Bh5 {[%emt 0:00:16]} Qd7 {[%emt 0:00:13]} 64. Nd2 {[%emt 0:00:04]} Qc7 {[%emt 0:00:29]} 65. Nf3 {[%emt 0:00:01]} Qd7 {[%emt 0:00:12]} 66. Be8 {[%emt 0:00:11]} Qc7 {[%emt 0:00:02]} 67. Bh5 {[%emt 0:00:16]} Qd7 {[%emt 0:00:01]} 68. Nh4 {[%emt 0:00:03]} Bc3 {[%emt 0:00:25]} 69. Nf3 {[%emt 0:00:08]} Bd4 {[%emt 0:00:02]} 70. Nd2 {[%emt 0:00:08]} Bc3 {[%emt 0:00:03]} 71. Nf1 {[%emt 0:00:03]} Bd4 {[%emt 0:00:10]} 72. Kh1 {[%emt 0:00:03]} Qc7 {[%emt 0:00:02]} 73. Kh2 {[%emt 0:00:02]} Qd7 {[%emt 0:00:00]} 74. Ng3 {[%emt 0:00:11]} Bc3 {[%emt 0:00:07]} 75. Ne2 {[%emt 0:00:08]} Bd4 {[%emt 0:00:01]} 76. Be8 {[%emt 0:00:05]} Qc7 {[%emt 0:00:00]} 77. Bc6 {[%emt 0:00:04]} Rf7 {[%emt 0:00:08]} 78. Ng3 {[%emt 0:00:07]} Qd8 {[%emt 0:00:35]} 79. Nh5 {[%emt 0:00:11]} Qc7 {[%emt 0:00:15]} 1-0

[Event "Wuerttemberg Rapid Teams 2024"]
[Site "B?blingen, Germany"]
[Date "2024.04.13"]
[Round "5.5"]
[White "Zuferi, Enis"]
[Black "Kuklin, Valentin"]
[Result "0-1"]
[ECO "A67"]
[WhiteElo "2406"]
[BlackElo "2367"]
[Annotator "RC"]
[PlyCount "64"]
[EventDate "2024.04.13"]
[EventType "team-tourn"]
[SourceTitle "playchess.com"]
[Source "ChessBase"]
[SourceQuality "1"]
[TimeControl "900+5"]

1. d4 {[%emt 0:00:03]} Nf6 {[%emt 0:00:02]} 2. c4 {[%emt 0:00:01]} c5 {[%emt 0:00:04]} 3. d5 {[%emt 0:00:02]} e6 {[%emt 0:00:01]} 4. Nc3 {[%emt 0:00:01]} exd5 {[%emt 0:00:01]} 5. cxd5 {[%emt 0:00:02]} d6 {[%emt 0:00:03]} 6. e4 {[%emt 0:00:01]} g6 {[%emt 0:00:02]} 7. f4 {[%emt 0:00:02]} Bg7 {[%emt 0:00:04]} 8. Bb5+ {[%emt 0:00:01]} Nfd7 {[%emt 0:00:05]} 9. Be2 {[%emt 0:00:02]} Qh4+ {[%emt 0:00:09]} 10. g3 {[%emt 0:00:01]} Qd8 {[%emt 0:00:02]} 11. Nf3 {[%emt 0:00:02]} O-O {[%emt 0:00:04]} 12. O-O {[%emt 0:00:04]} Nb6 {[%emt 0:00:08]} 13. a4 {[%emt 0:03:27]} Bg4 {[%emt 0:00:30]} 14. a5 {[%emt 0:00:42]} N6d7 {[%emt 0:00:51]} 15. Qb3 {[%emt 0:02:58]} Na6 {[%emt 0:01:42]} 16. Kg2 {[%emt 0:01:56]} Nb4 {[%emt 0:00:42]} 17. h3 {[%emt 0:00:24]} Bxf3+ {[%emt 0:00:10]} 18. Bxf3 {[%emt 0:00:24]} Re8 {[%emt 0:00:45]} 19. Bd2 {[%emt 0:00:14]} Qb8 {[%emt 0:05:04]} 20. Rae1 {[%emt 0:02:28]} b5 {[%emt 0:00:40]} 21. e5 {[%emt 0:00:28]} dxe5 {[%emt 0:00:51]} 22. Ne4 {[%emt 0:01:21]} Na6 {[%emt 0:00:50]} 23. Ng5 {[%emt 0:01:15]} c4 {[%emt 0:00:08]} 24. Qe3 {[%emt 0:00:44]} h6 {[%emt 0:00:23]} 25. Nxf7 {[%emt 0:00:09]} Kxf7 {[%emt 0:00:01]} 26. d6 {[%emt 0:00:05]} Kg8 {[%emt 0:00:21]} 27. Bd5+ {[%emt 0:00:03]} Kh8 {[%emt 0:00:08]} 28. Qf3 {[%emt 0:00:14]} Qxd6 {[%emt 0:00:09]} 29. Bc3 {[%emt 0:00:06]} Rad8 {[%emt 0:00:13]} 30. Rd1 {[%emt 0:00:06]} b4 {[%emt 0:00:23]} 31. Be1 {[%emt 0:00:05]} Nf6 {[%emt 0:00:07]} 32. fxe5 {[%emt 0:00:05]} Rxe5 {[%emt 0:00:17]} 0-1

[Event "Wuerttemberg Rapid Teams 2024"]
[Site "B?blingen, Germany"]
[Date "2024.04.13"]
[Round "5.6"]
[White "Vujic, Branimir"]
[Black "Huber, Philipp"]
[Result "1-0"]
[ECO "B07"]
[WhiteElo "2218"]
[BlackElo "2306"]
[Annotator "RC"]
[PlyCount "73"]
[EventDate "2024.04.13"]
[EventType "team-tourn"]
[SourceTitle "playchess.com"]
[Source "ChessBase"]
[SourceQuality "1"]
[TimeControl "900+5"]

1. d4 {[%emt 0:00:04]} Nf6 {[%emt 0:00:01]} 2. Bf4 {[%emt 0:00:05]} d6 {[%emt 0:00:01]} 3. Nc3 {[%emt 0:00:02]} c6 {[%emt 0:00:12]} 4. e4 {[%emt 0:00:02]} Qa5 {[%emt 0:00:04]} 5. Qd2 {[%emt 0:00:02]} e5 {[%emt 0:00:03]} 6. Be3 {[%emt 0:00:06]} Ng4 {[%emt 0:00:09]} 7. Nce2 {[%emt 0:01:30]} Qc7 {[%emt 0:00:20]} 8. Bg5 {[%emt 0:00:13]} Be7 {[%emt 0:00:41]} 9. f3 {[%emt 0:00:17]} Nf6 {[%emt 0:00:34]} 10. c3 {[%emt 0:00:03]} O-O {[%emt 0:00:10]} 11. Ng3 {[%emt 0:00:05]} Na6 {[%emt 0:00:59]} 12. Bxa6 {[%emt 0:00:14]} bxa6 {[%emt 0:00:01]} 13. N1e2 {[%emt 0:00:06]} Rb8 {[%emt 0:00:31]} 14. O-O {[%emt 0:00:19]} Re8 {[%emt 0:00:20]} 15. Rfd1 {[%emt 0:00:17]} a5 {[%emt 0:01:32]} 16. b3 {[%emt 0:00:11]} a4 {[%emt 0:00:15]} 17. b4 {[%emt 0:00:02]} g6 {[%emt 0:01:01]} 18. Qc2 {[%emt 0:00:13]} Bd7 {[%emt 0:00:29]} 19. Be3 {[%emt 0:03:35]} c5 {[%emt 0:00:23]} 20. bxc5 {[%emt 0:00:19]} dxc5 {[%emt 0:00:01]} 21. dxe5 {[%emt 0:00:15]} Qxe5 {[%emt 0:00:39]} 22. Bf4 {[%emt 0:00:03]} Qe6 {[%emt 0:00:02]} 23. Bxb8 {[%emt 0:00:14]} Rxb8 {[%emt 0:00:02]} 24. Nf4 {[%emt 0:00:04]} Qc6 {[%emt 0:00:34]} 25. Nd5 {[%emt 0:00:05]} Bd8 {[%emt 0:00:13]} 26. c4 {[%emt 0:00:14]} Ne8 {[%emt 0:00:32]} 27. Rab1 {[%emt 0:00:07]} Rc8 {[%emt 0:00:01]} 28. Qc3 {[%emt 0:00:28]} h5 {[%emt 0:00:22]} 29. Ne2 {[%emt 0:00:17]} Nc7 {[%emt 0:00:16]} 30. Nef4 {[%emt 0:00:13]} Ne6 {[%emt 0:00:07]} 31. Nf6+ {[%emt 0:00:25]} Bxf6 {[%emt 0:00:02]} 32. Qxf6 {[%emt 0:00:02]} Nxf4 {[%emt 0:00:08]} 33. Qxf4 {[%emt 0:00:03]} Be6 {[%emt 0:00:02]} 34. Qf6 {[%emt 0:00:17]} Qc7 {[%emt 0:00:25]} 35. Rd2 {[%emt 0:00:02]} Bxc4 {[%emt 0:00:18]} 36. Rbd1 {[%emt 0:00:02]} Bb5 {[%emt 0:01:23]} 37. Rd8+ {[%emt 0:00:29]} 1-0

[Event "Wuerttemberg Rapid Teams 2024"]
[Site "B?blingen, Germany"]
[Date "2024.04.13"]
[Round "5.7"]
[White "Degenhard, Simon"]
[Black "Schuh, Karsten"]
[Result "0-1"]
[ECO "B47"]
[WhiteElo "2204"]
[BlackElo "2133"]
[Annotator "RC"]
[PlyCount "76"]
[EventDate "2024.04.13"]
[EventType "team-tourn"]
[SourceTitle "playchess.com"]
[Source "ChessBase"]
[SourceQuality "1"]
[TimeControl "900+5"]

1. e4 {[%emt 0:00:02]} c5 {[%emt 0:00:01]} 2. Nf3 {[%emt 0:00:01]} Nc6 {[%emt 0:00:01]} 3. d4 {[%emt 0:00:01]} cxd4 {[%emt 0:00:01]} 4. Nxd4 {[%emt 0:00:02]} Qc7 {[%emt 0:00:01]} 5. Nc3 {[%emt 0:00:06]} e6 {[%emt 0:00:02]} 6. g3 {[%emt 0:00:03]} a6 {[%emt 0:00:04]} 7. Bg2 {[%emt 0:00:01]} Nf6 {[%emt 0:00:05]} 8. O-O {[%emt 0:00:04]} Nxd4 {[%emt 0:00:03]} 9. Qxd4 {[%emt 0:00:03]} Bc5 {[%emt 0:00:02]} 10. Bf4 {[%emt 0:00:02]} d6 {[%emt 0:00:02]} 11. Qd2 {[%emt 0:00:01]} h6 {[%emt 0:01:50]} 12. Rad1 {[%emt 0:00:02]} e5 {[%emt 0:00:30]} 13. Be3 {[%emt 0:00:02]} Be6 {[%emt 0:00:04]} 14. Bxc5 {[%emt 0:00:15]} dxc5 {[%emt 0:00:02]} 15. Nd5 {[%emt 0:00:11]} Bxd5 {[%emt 0:00:12]} 16. exd5 {[%emt 0:00:02]} Qd6 {[%emt 0:00:02]} 17. f4 {[%emt 0:00:57]} O-O {[%emt 0:00:20]} 18. c4 {[%emt 0:00:22]} exf4 {[%emt 0:00:17]} 19. Rxf4 {[%emt 0:02:50]} b5 {[%emt 0:02:12]} 20. Rdf1 {[%emt 0:01:38]} Nd7 {[%emt 0:00:12]} 21. b3 {[%emt 0:02:17]} Ne5 {[%emt 0:01:24]} 22. Re1 {[%emt 0:00:18]} bxc4 {[%emt 0:01:32]} 23. bxc4 {[%emt 0:00:01]} Rab8 {[%emt 0:00:04]} 24. Rfe4 {[%emt 0:00:14]} f6 {[%emt 0:00:02]} 25. Qc3 {[%emt 0:01:29]} Rb4 {[%emt 0:00:31]} 26. Bh3 {[%emt 0:00:27]} Rfb8 {[%emt 0:00:37]} 27. Be6+ {[%emt 0:00:18]} Kh8 {[%emt 0:00:56]} 28. Kg2 {[%emt 0:00:02]} Rb2+ {[%emt 0:00:06]} 29. R1e2 {[%emt 0:00:02]} Rxe2+ {[%emt 0:00:03]} 30. Rxe2 {[%emt 0:00:01]} Rb4 {[%emt 0:00:02]} 31. Re4 {[%emt 0:00:11]} Qb6 {[%emt 0:00:06]} 32. Kh3 {[%emt 0:00:34]} Rb2 {[%emt 0:01:01]} 33. Bf5 {[%emt 0:01:40]} Rf2 {[%emt 0:03:41]} 34. Rxe5 {[%emt 0:01:26]} fxe5 {[%emt 0:00:01]} 35. Qxe5 {[%emt 0:00:02]} Qd8 {[%emt 0:00:02]} 36. g4 {[%emt 0:00:36]} Rxa2 {[%emt 0:00:31]} 37. Qe6 {[%emt 0:00:17]} Qb8 {[%emt 0:00:42]} 38. d6 {[%emt 0:00:19]} Qb3+ {[%emt 0:00:09]} 0-1

[Event "Wuerttemberg Rapid Teams 2024"]
[Site "B?blingen, Germany"]
[Date "2024.04.13"]
[Round "5.8"]
[White "Schuh, Bernd-Martin"]
[Black "Tschlatscher, Thomas"]
[Result "0-1"]
[ECO "E21"]
[WhiteElo "1976"]
[BlackElo "2217"]
[Annotator "RC"]
[PlyCount "90"]
[EventDate "2024.04.13"]
[EventType "team-tourn"]
[SourceTitle "playchess.com"]
[Source "ChessBase"]
[SourceQuality "1"]
[TimeControl "900+5"]

1. d4 {[%emt 0:00:02]} Nf6 {[%emt 0:00:01]} 2. c4 {[%emt 0:00:01]} e6 {[%emt 0:00:02]} 3. Nc3 {[%emt 0:00:02]} Bb4 {[%emt 0:00:06]} 4. Bd2 {[%emt 0:00:03]} d6 {[%emt 0:00:14]} 5. e3 {[%emt 0:00:15]} O-O {[%emt 0:00:13]} 6. Nf3 {[%emt 0:00:02]} b6 {[%emt 0:00:36]} 7. a3 {[%emt 0:00:03]} Bxc3 {[%emt 0:00:03]} 8. Bxc3 {[%emt 0:00:01]} Bb7 {[%emt 0:00:12]} 9. Be2 {[%emt 0:00:02]} Nbd7 {[%emt 0:00:13]} 10. O-O {[%emt 0:00:02]} Qe7 {[%emt 0:00:12]} 11. Rc1 {[%emt 0:00:13]} Ne4 {[%emt 0:00:08]} 12. b4 {[%emt 0:00:17]} Nxc3 {[%emt 0:00:16]} 13. Rxc3 {[%emt 0:00:02]} a5 {[%emt 0:00:02]} 14. Qc2 {[%emt 0:00:56]} axb4 {[%emt 0:00:42]} 15. axb4 {[%emt 0:00:01]} Ra7 {[%emt 0:00:02]} 16. c5 {[%emt 0:00:11]} bxc5 {[%emt 0:01:07]} 17. bxc5 {[%emt 0:00:02]} dxc5 {[%emt 0:06:06]} 18. dxc5 {[%emt 0:00:02]} Bxf3 {[%emt 0:00:02]} 19. Bxf3 {[%emt 0:00:04]} Ra5 {[%emt 0:00:10]} 20. c6 {[%emt 0:01:18]} Ne5 {[%emt 0:00:17]} 21. Be2 {[%emt 0:00:25]} Rfa8 {[%emt 0:00:55]} 22. f4 {[%emt 0:01:48]} Ng6 {[%emt 0:00:03]} 23. Rd1 {[%emt 0:00:42]} Ra2 {[%emt 0:01:09]} 24. Qd3 {[%emt 0:00:02]} Nh4 {[%emt 0:00:04]} 25. g3 {[%emt 0:00:20]} Nf5 {[%emt 0:00:20]} 26. Bf3 {[%emt 0:02:41]} g6 {[%emt 0:00:30]} 27. e4 {[%emt 0:01:01]} Nd6 {[%emt 0:00:16]} 28. e5 {[%emt 0:00:09]} Nf5 {[%emt 0:00:02]} 29. Be4 {[%emt 0:01:38]} Kg7 {[%emt 0:00:13]} 30. Bxf5 {[%emt 0:00:03]} gxf5 {[%emt 0:00:02]} 31. Rc2 {[%emt 0:00:50]} Qb4 {[%emt 0:00:07]} 32. Kg2 {[%emt 0:01:57]} R2a3 {[%emt 0:02:11]} 33. Qc4 {[%emt 0:00:26]} Qb6 {[%emt 0:00:25]} 34. Kh3 {[%emt 0:00:16]} Qe3 {[%emt 0:00:27]} 35. Rd7 {[%emt 0:01:18]} Qf3 {[%emt 0:00:17]} 36. Qd4 {[%emt 0:00:37]} Qg4+ {[%emt 0:00:05]} 37. Kg2 {[%emt 0:00:01]} Qf3+ {[%emt 0:00:05]} 38. Kh3 {[%emt 0:00:02]} Qg4+ {[%emt 0:00:09]} 39. Kg2 {[%emt 0:00:01]} Ra1 {[%emt 0:00:03]} 40. Rf2 {[%emt 0:00:22]} Rc1 {[%emt 0:00:09]} 41. Qd2 {[%emt 0:00:12]} Raa1 {[%emt 0:00:02]} 42. Rxf7+ {[%emt 0:00:05]} Kxf7 {[%emt 0:00:02]} 43. Qd7+ {[%emt 0:00:05]} Kg6 {[%emt 0:00:08]} 44. Qxe6+ {[%emt 0:00:05]} Kh5 {[%emt 0:00:00]} 45. Qf7+ {[%emt 0:00:02]} Qg6 {[%emt 0:00:01]} 0-1